bitfinex-derivatives/quotes_BTCF0:USTF0_20210706
["timestamp","ask_amount","ask_price","bid_price","bid_amount"]
[1625608310345,1.09713632,33773.0,33769.0,1.21616381]
[1625608310585,1.04013632,33773.0,33769.0,1.21616381]
[1625608310704,0.72172632,33773.0,33769.0,1.21616381]
[1625608310825,0.72172632,33773.0,33772.0,0.24057544]
[1625608311365,0.72172632,33773.0,33772.0,1.45615285]
[1625608311545,0.72172632,33773.0,33772.0,2.84537067]
[1625608320321,0.72172632,33773.0,33772.0,1.45615285]
[1625608320441,0.72172632,33773.0,33772.0,1.21557741]
[1625608320982,0.72172632,33773.0,33772.0,1.45615285]
[1625608321404,0.72172632,33773.0,33772.0,0.24057544]
[1625608322186,0.72172632,33773.0,33772.0,1.45528869]
[1625608323330,0.24057544,33785.0,33772.0,3.13103813]
[1625608323450,0.24057544,33785.0,33772.0,3.63103813]
[1625608323630,0.24057544,33785.0,33778.0,1.21439024]
[1625608323929,0.24057544,33785.0,33781.0,4.1049]
[1625608324051,0.057,33784.0,33781.0,4.1049]
[1625608324170,0.24057544,33785.0,33781.0,4.1049]
[1625608325013,0.48115088,33785.0,33784.0,0.24057544]
[1625608328135,0.53815088,33785.0,33784.0,0.24057544]
[1625608329216,0.48115088,33785.0,33784.0,0.24057544]
[1625608329758,0.53815088,33785.0,33784.0,0.24057544]
[1625608331079,0.48115088,33785.0,33784.0,0.24057544]
[1625608331440,0.53815088,33785.0,33784.0,0.24057544]
[1625608332038,0.53815088,33785.0,33784.0,7.544e-05]
[1625608332171,0.53815088,33785.0,33780.0,0.24057544]
[1625608332279,0.53815088,33785.0,33778.0,1.21442858]
[1625608332762,1.18273957,33784.0,33771.0,1.3846333]
[1625608332883,0.057,33783.0,33771.0,1.3846333]
[1625608333001,1.23946952,33783.0,33771.0,0.17]
[1625608333183,1.04307632,33773.0,33771.0,0.17]
[1625608333302,1.10007632,33773.0,33771.0,0.17]
[1625608333902,1.10007632,33773.0,33772.0,0.00377126]
[1625608334202,1.10007632,33773.0,33769.0,0.714395]
[1625608334324,1.10007632,33773.0,33768.0,0.99360525]
[1625608334564,1.10007632,33773.0,33746.0,2.7221105]
[1625608334565,1.10007632,33773.0,33760.0,1.3882927]
[1625608334805,1.10007632,33773.0,33759.0,1.38833438]
[1625608334926,0.01558494,33772.0,33761.0,0.00376808]
[1625608335106,0.72172632,33762.0,33761.0,0.00376808]
[1625608335224,1.07904632,33762.0,33760.0,0.00376835]
[1625608335464,1.07904632,33762.0,33761.0,0.00376835]
[1625608335946,1.07904632,33762.0,33757.0,0.00376844]
[1625608336128,1.02204632,33762.0,33757.0,0.00376844]
[1625608336548,1.02204632,33762.0,33757.0,1.38751151]
[1625608336788,1.02204632,33762.0,33758.0,0.00378665]
[1625608336908,0.72172632,33762.0,33758.0,0.00378665]
[1625608337149,0.77872632,33762.0,33758.0,0.00378665]
[1625608337874,0.72172632,33762.0,33757.0,1.3904172]
[1625608338231,0.72172632,33762.0,33759.0,0.00378648]
[1625608338534,0.72172632,33762.0,33758.0,0.00378648]
[1625608338951,0.72172632,33762.0,33761.0,1.03997363]
[1625608339131,0.77872632,33762.0,33761.0,1.03997363]
[1625608339311,0.77872632,33762.0,33761.0,0.00378657]
[1625608339431,0.77872632,33762.0,33761.0,0.35028212]
[1625608339733,0.72172632,33762.0,33761.0,0.35028212]
[1625608339853,0.72172632,33762.0,33761.0,0.34649555]
[1625608340094,0.77872632,33762.0,33761.0,0.34649555]
[1625608341054,0.72172632,33762.0,33761.0,0.34649555]
[1625608341836,0.72172632,33762.0,33760.0,0.24057544]
[1625608342137,0.24057544,33762.0,33760.0,1.27963323]
[1625608342256,0.3362865,33772.0,33760.0,1.77963323]
[1625608342377,0.33669826,33776.0,33761.0,1.03899499]
[1625608342570,0.33703662,33779.0,33769.0,0.34630771]
[1625608342736,0.33703662,33779.0,33769.0,0.64279771]
[1625608342858,0.33696884,33778.0,33769.0,0.64279771]
[1625608343099,0.33699715,33779.0,33769.0,0.64279771]
[1625608343219,0.24057544,33778.0,33777.0,0.24057544]
[1625608343338,0.24057544,33778.0,33777.0,0.49742544]
[1625608343760,0.63455819,33778.0,33777.0,0.49742544]
[1625608343998,0.29757544,33778.0,33777.0,0.49742544]
[1625608345507,0.24057544,33778.0,33777.0,0.49742544]
[1625608345627,0.29757544,33778.0,33777.0,0.49742544]
[1625608346952,0.63456468,33778.0,33777.0,0.25685]
[1625608347070,0.63456468,33778.0,33774.0,0.24057544]
[1625608347190,0.24057544,33775.0,33774.0,0.24057544]
[1625608347372,0.29757544,33775.0,33774.0,0.24057544]
[1625608347852,0.24057544,33775.0,33774.0,0.24057544]
[1625608348331,0.29757544,33775.0,33774.0,0.24057544]
[1625608353084,0.24057544,33775.0,33774.0,0.24057544]
[1625608354044,0.5778545,33778.0,33774.0,0.24057544]
[1625608354287,0.24057544,33778.0,33774.0,0.24057544]
[1625608354588,0.057,33777.0,33775.0,0.34658822]
[1625608354710,0.057,33777.0,33774.0,0.24057544]
[1625608355246,0.057,33777.0,33776.0,0.24057544]
[1625608359510,0.057,33777.0,33773.0,0.34730053]
[1625608359751,0.33805922,33775.0,33772.0,0.3473065]
[1625608359932,1.07002363,33774.0,33769.0,0.34734092]
[1625608360170,0.33773241,33771.0,33768.0,0.34734231]
[1625608360290,0.057,33770.0,33768.0,0.34734231]
[1625608360412,0.39460469,33770.0,33767.0,0.34736012]
[1625608360893,0.33753335,33769.0,33766.0,0.34736977]
[1625608361013,0.057,33768.0,33766.0,0.34736977]
[1625608361135,0.33729299,33767.0,33763.0,0.34738274]
[1625608361251,0.72172632,33764.0,33763.0,0.34738274]
[1625608361371,1.10118632,33764.0,33763.0,0.34738274]
[1625608361611,1.10118632,33764.0,33761.0,1.04214822]
[1625608362032,1.10118632,33764.0,33762.0,0.00378453]
[1625608362152,1.10118632,33764.0,33763.0,0.34755391]
[1625608362513,1.10118632,33764.0,33763.0,0.00378453]
[1625608362754,0.80361088,33764.0,33762.0,1.0426256]
[1625608362999,0.80361088,33764.0,33763.0,0.00378425]
[1625608363116,0.80361088,33764.0,33763.0,1.04636991]
[1625608363296,0.48115088,33764.0,33763.0,2.5040373]
[1625608363478,0.48115088,33764.0,33763.0,1.28694535]
[1625608364196,0.53815088,33764.0,33763.0,1.28694535]
[1625608364557,0.53815088,33764.0,33763.0,0.24435969]
[1625608364918,0.53815088,33764.0,33763.0,1.28750518]
[1625608365216,0.48115088,33764.0,33763.0,2.50505865]
[1625608365458,0.53815088,33764.0,33763.0,2.50505865]
[1625608366002,0.53815088,33764.0,33763.0,0.94010921]
[1625608366120,0.87585076,33764.0,33763.0,0.24435969]
[1625608366360,0.53815088,33764.0,33763.0,1.98373804]
[1625608368279,0.53815088,33764.0,33763.0,0.93632678]
[1625608368399,0.53815088,33764.0,33763.0,0.94011117]
[1625608368521,0.53815088,33764.0,33763.0,1.98367058]
[1625608368701,0.53815088,33764.0,33763.0,1.97988619]
[1625608368820,0.53815088,33764.0,33763.0,0.93632678]
[1625608368941,0.53815088,33764.0,33763.0,0.94011117]
[1625608369542,0.53815088,33764.0,33763.0,0.93632678]
[1625608369782,0.53815088,33764.0,33763.0,0.94010919]
[1625608370023,0.53815088,33764.0,33763.0,0.93632678]
[1625608370264,0.87573778,33764.0,33763.0,0.58835639]
[1625608371105,0.53815088,33764.0,33763.0,0.93990707]
[1625608371285,0.53815088,33764.0,33763.0,1.98313448]
[1625608371645,0.53815088,33764.0,33763.0,1.97935227]
[1625608371830,0.53815088,33764.0,33763.0,0.93612486]
[1625608371946,0.53815088,33764.0,33763.0,0.24057544]
[1625608372428,0.53815088,33764.0,33763.0,1.98296654]
[1625608373149,0.53815088,33764.0,33763.0,0.93980117]
[1625608373269,0.53815088,33764.0,33763.0,0.93601902]
[1625608374111,0.53815088,33764.0,33763.0,0.24057544]
[1625608374354,0.53815088,33764.0,33763.0,0.93594261]
[1625608376033,0.53815088,33764.0,33763.0,0.24057544]
[1625608377415,0.53815088,33764.0,33763.0,0.93592831]
[1625608377834,0.53815088,33764.0,33763.0,0.93971471]
[1625608378678,0.53815088,33764.0,33763.0,0.93592831]
[1625608378856,0.88544088,33764.0,33763.0,0.93592831]
[1625608379098,0.88544088,33764.0,33763.0,0.24057544]
[1625608379640,1.2229093,33764.0,33763.0,0.24057544]
[1625608379819,1.2229093,33764.0,33763.0,0.58825826]
[1625608380061,0.88544088,33764.0,33763.0,0.58825826]
[1625608380784,0.53815088,33764.0,33763.0,0.24057544]
[1625608380965,0.53815088,33764.0,33763.0,0.93591958]
[1625608381206,0.53815088,33764.0,33763.0,0.24057544]
[1625608381326,0.84796088,33764.0,33762.0,0.69534329]
[1625608381446,2.53342779,33764.0,33759.0,0.34771337]
[1625608381686,0.3371087,33761.0,33759.0,0.34771337]
[1625608381806,0.057,33760.0,33759.0,0.34771337]
[1625608382707,0.057,33760.0,33756.0,1.04308649]
[1625608382708,0.39398438,33760.0,33758.0,0.34770249]
[1625608382949,0.33695266,33759.0,33757.0,0.34770249]
[1625608383129,0.057,33758.0,33757.0,0.34770249]
[1625608383369,0.53815088,33758.0,33757.0,0.34770249]
[1625608383670,0.53815088,33758.0,33756.0,0.34762164]
[1625608384030,0.62555088,33758.0,33756.0,0.34072164]
[1625608384330,0.62555088,33758.0,33754.0,0.69526295]
[1625608384573,0.67272691,33757.0,33751.0,0.69533073]
[1625608384691,0.34619,33756.0,33751.0,0.69533073]
[1625608384812,0.67240702,33755.0,33750.0,0.69534624]
[1625608384932,0.057,33754.0,33750.0,0.69534624]
[1625608385054,0.237,33751.0,33747.0,0.69485268]
[1625608385172,0.237,33751.0,33746.0,0.14447902]
[1625608385173,0.057,33750.0,33746.0,0.14447902]
[1625608385355,0.057,33750.0,33743.0,1.38970535]
[1625608385356,0.72172632,33745.0,33743.0,0.69492529]
[1625608385537,0.72172632,33745.0,33738.0,0.2737]
[1625608385538,4.39940977,33744.0,33738.0,0.2737]
[1625608385716,4.39940977,33744.0,33738.0,0.0964]
[1625608385717,1.66631672,33739.0,33738.0,0.0964]
[1625608385871,0.1906,33737.0,33723.0,0.9656]
[1625608385956,4.8963,33727.0,33723.0,0.9656]
[1625608386075,0.057,33726.0,33723.0,0.9656]
[1625608386195,0.99783336,33724.0,33723.0,0.8808]
[1625608386316,1.55483336,33724.0,33711.0,1.04363394]
[1625608386435,1.55483336,33724.0,33674.0,3.77167979]
[1625608386436,1.57035964,33724.0,33710.0,1.043682]
[1625608386677,1.57035964,33724.0,33700.0,1.04390538]
[1625608386678,0.99468969,33711.0,33700.0,1.04390538]
[1625608386796,0.557,33710.0,33700.0,1.04390538]
[1625608386976,0.99373094,33707.0,33697.0,1.04400393]
[1625608387097,0.057,33706.0,33691.0,1.02798835]
[1625608387335,0.057,33706.0,33687.0,0.67]
[1625608387336,5.09812632,33692.0,33689.0,1.03799336]
[1625608387455,5.33319632,33692.0,33689.0,1.03799336]
[1625608387756,5.33319632,33692.0,33687.0,0.67]
[1625608388537,0.057,33691.0,33687.0,0.66107]
[1625608388779,0.057,33691.0,33687.0,0.21397]
[1625608388899,0.057,33691.0,33668.0,1.55756055]
[1625608389018,0.057,33691.0,33660.0,1.54921077]
[1625608389199,3.9148,33672.0,33659.0,1.54929467]
[1625608389318,4.1427,33672.0,33659.0,1.54929467]
[1625608389438,0.24057544,33666.0,33659.0,1.54929467]
[1625608389558,0.24057544,33666.0,33655.0,1.78998278]
[1625608389740,0.24057544,33666.0,33655.0,0.24057544]
[1625608390400,0.24057544,33666.0,33645.0,1.72189631]
[1625608390521,3.9052,33653.0,33648.0,1.54979317]
[1625608390641,4.15384,33653.0,33648.0,1.54979317]
[1625608390764,4.15384,33653.0,33644.0,1.5498492]
[1625608391003,4.15384,33653.0,33642.0,1.54996853]
[1625608391243,4.15384,33653.0,33633.0,1.54060868]
[1625608391364,0.24057544,33640.0,33639.0,0.24057544]
[1625608391605,0.51941544,33640.0,33639.0,0.24057544]
[1625608392084,0.51941544,33640.0,33639.0,0.33017544]
[1625608392205,0.51941544,33640.0,33639.0,0.24057544]
[1625608392503,0.51941544,33640.0,33623.0,1.54086084]
[1625608392746,0.51941544,33640.0,33621.0,1.54090216]
[1625608392923,0.51941544,33640.0,33619.0,1.83387797]
[1625608393103,4.9991,33621.0,33612.0,1.53230109]
[1625608393222,5.27151,33621.0,33612.0,1.53230109]
[1625608393404,5.27151,33621.0,33607.0,1.99545677]
[1625608393405,4.56947111,33621.0,33620.0,0.96230176]
[1625608393525,4.56947111,33621.0,33609.0,1.62064107]
[1625608393766,4.56947111,33621.0,33609.0,0.0887]
[1625608394064,4.56947111,33621.0,33607.0,0.2929]
[1625608394189,4.56947111,33621.0,33596.0,1.53227496]
[1625608394670,4.56947111,33621.0,33587.0,1.34]
[1625608394671,4.56947111,33621.0,33595.0,1.5323651]
[1625608395206,4.56947111,33621.0,33587.0,1.84]
[1625608395207,0.27241,33621.0,33589.0,1.5235874]
[1625608395328,0.27241,33621.0,33589.0,2.0235874]
[1625608395449,0.24057544,33620.0,33619.0,0.24057544]
[1625608395689,4.07187544,33620.0,33619.0,0.24057544]
[1625608395868,0.24057544,33620.0,33619.0,0.24057544]
[1625608395987,0.27241,33621.0,33619.0,0.24057544]
[1625608396413,5.2415,33635.0,33619.0,0.24057544]
[1625608396709,0.27884,33640.0,33619.0,0.24057544]
[1625608396832,1.0,33667.0,33619.0,0.24057544]
[1625608397009,0.24864,33653.0,33619.0,0.24057544]
[1625608397139,0.14843664,33685.0,33619.0,0.24057544]
[1625608397309,0.057,33670.0,33619.0,0.74057544]
[1625608397434,0.24057544,33661.0,33660.0,0.24057544]
[1625608397552,0.24057544,33661.0,33660.0,0.32035]
[1625608399414,0.24057544,33673.0,33660.0,0.80150088]
[1625608400022,0.24057544,33677.0,33672.0,5.2944]
[1625608400144,0.24057544,33677.0,33672.0,5.52926]
[1625608400977,0.057,33694.0,33672.0,5.52926]
[1625608401096,1.0,33713.0,33672.0,5.52926]
[1625608401282,0.07924024,33718.0,33672.0,5.52926]
[1625608401283,1.0,33718.0,33672.0,5.52926]
[1625608401399,0.24057544,33695.0,33694.0,0.24057544]
[1625608401521,0.24057544,33695.0,33694.0,0.21308]
[1625608402840,0.06218944,33695.0,33694.0,0.21308]
[1625608403024,0.24057544,33702.0,33701.0,1.69673412]
[1625608403262,0.24057544,33702.0,33701.0,0.64452145]
[1625608403381,0.72172632,33702.0,33701.0,0.64452145]
[1625608404105,0.72172632,33702.0,33697.0,0.30174]
[1625608404226,0.72172632,33702.0,33697.0,0.20864]
[1625608404461,0.72172632,33702.0,33697.0,0.11844]
[1625608404763,0.72172632,33702.0,33697.0,0.05254]
[1625608404885,0.72172632,33702.0,33697.0,0.01134]
[1625608405487,0.24057544,33698.0,33697.0,0.01134]
[1625608405607,0.24057544,33698.0,33689.0,0.24057544]
[1625608406028,0.24057544,33698.0,33684.0,0.24057544]
[1625608406269,0.24057544,33698.0,33681.0,0.24057544]
[1625608406391,0.53196544,33698.0,33681.0,0.24057544]
[1625608407477,0.48115088,33682.0,33681.0,0.24057544]
[1625608408014,0.24057544,33685.0,33681.0,0.24057544]
[1625608409459,0.24057544,33685.0,33682.0,0.24057544]
[1625608411439,0.24057544,33684.0,33682.0,0.24057544]
[1625608413241,0.49927544,33684.0,33682.0,0.24057544]
[1625608414443,0.49927544,33684.0,33673.0,0.48115088]
[1625608414624,0.49927544,33684.0,33661.0,1.0455]
[1625608414741,0.49927544,33684.0,33661.0,0.9885]
[1625608414983,3.7267,33682.0,33661.0,0.9885]
[1625608415522,0.24057544,33669.0,33668.0,0.24057544]
[1625608415643,0.49199544,33669.0,33668.0,0.24057544]
[1625608417566,0.73257088,33669.0,33665.0,0.24057544]
[1625608419549,0.24057544,33672.0,33668.0,0.24057544]
[1625608421533,0.24057544,33672.0,33671.0,0.24057544]
[1625608421955,0.24057544,33672.0,33668.0,0.24057544]
[1625608423517,0.24057544,33672.0,33671.0,0.24057544]
[1625608424358,0.24057544,33672.0,33671.0,0.56742544]
[1625608424477,0.24057544,33677.0,33671.0,0.56742544]
[1625608425621,0.24057544,33677.0,33676.0,0.24057544]
[1625608425919,0.24057544,33684.0,33676.0,0.24057544]
[1625608426639,0.24057544,33684.0,33677.0,0.00369989]
[1625608426941,0.24057544,33690.0,33677.0,0.00369989]
[1625608427600,0.24057544,33690.0,33689.0,0.48115088]
[1625608427720,0.24057544,33690.0,33689.0,0.72210088]
[1625608427960,0.24057544,33690.0,33689.0,0.72580043]
[1625608428323,0.24057544,33695.0,33689.0,0.72580043]
[1625608428801,0.24057544,33695.0,33690.0,0.00369917]
[1625608429643,0.24057544,33695.0,33694.0,0.24057544]
[1625608430123,0.24057544,33695.0,33694.0,0.24427194]
[1625608431744,0.24057544,33702.0,33694.0,0.24427194]
[1625608432112,0.24057544,33702.0,33695.0,0.00369599]
[1625608433724,0.24057544,33702.0,33701.0,0.48115088]
[1625608436249,0.24057544,33705.0,33701.0,0.48115088]
[1625608436371,0.24057544,33713.0,33701.0,0.48115088]
[1625608437690,0.24057544,33713.0,33712.0,0.71311088]
[1625608445086,1.71851895,33713.0,33712.0,0.36252652]
[1625608445626,2.37539715,33713.0,33712.0,0.36252652]
[1625608445934,0.733278,33713.0,33712.0,0.36252652]
[1625608446652,0.32291023,33713.0,33712.0,0.36252652]
[1625608447671,0.08233479,33713.0,33712.0,0.36252652]
[1625608447790,0.08234079,33714.0,33712.0,0.8436774]
[1625608448032,0.08236884,33715.0,33712.0,0.8436774]
[1625608448515,0.32298506,33717.0,33712.0,0.8436774]
[1625608448699,0.24057544,33717.0,33712.0,0.8436774]
[1625608449776,0.24057544,33717.0,33716.0,0.24057544]
[1625608450016,0.24057544,33719.0,33716.0,0.24057544]
[1625608450136,0.32298175,33720.0,33716.0,0.24057544]
[1625608450318,0.24057544,33720.0,33716.0,0.24057544]
[1625608450560,0.08245579,33722.0,33716.0,0.24057544]
[1625608450676,0.98765911,33725.0,33716.0,0.24057544]
[1625608450797,0.98765911,33725.0,33717.0,0.5]
[1625608451098,0.0825895,33728.0,33717.0,0.5]
[1625608451581,0.08255327,33731.0,33717.0,0.5]
[1625608451700,0.08256763,33732.0,33717.0,0.5]
[1625608451878,0.08256763,33732.0,33730.0,0.96075632]
[1625608453440,0.24057544,33735.0,33730.0,0.96075632]
[1625608453561,0.24057544,33735.0,33731.0,4.1065]
[1625608453742,0.08255647,33732.0,33731.0,4.1065]
[1625608454641,0.0825686,33733.0,33731.0,4.1065]
[1625608454822,0.08255348,33732.0,33731.0,4.1065]
[1625608455362,2.14680855,33732.0,33731.0,4.1065]
[1625608455602,1.15603734,33732.0,33731.0,4.1065]
[1625608456623,2.45267342,33732.0,33718.0,0.057]
[1625608456744,2.45267342,33732.0,33716.0,0.24057544]
[1625608456868,0.24756185,33727.0,33716.0,0.24057544]
[1625608457106,0.08259172,33720.0,33716.0,0.24057544]
[1625608457226,0.40555172,33720.0,33716.0,0.24057544]
[1625608457349,0.24740278,33719.0,33716.0,0.24057544]
[1625608457648,0.24728875,33717.0,33716.0,0.24057544]
[1625608457767,0.72843963,33717.0,33716.0,0.24057544]
[1625608457889,2.62025266,33717.0,33705.0,0.057]
[1625608458070,2.62025266,33717.0,33699.0,0.9893]
[1625608458194,0.24698794,33713.0,33699.0,0.9893]
[1625608458317,0.49521794,33713.0,33699.0,0.9893]
[1625608458495,0.24695579,33712.0,33699.0,0.9893]
[1625608458618,0.24679779,33710.0,33699.0,0.9893]
[1625608458858,0.2466397,33708.0,33699.0,0.9893]
[1625608459226,0.30023122,33705.0,33699.0,0.9893]
[1625608459336,0.24650174,33703.0,33699.0,0.9893]
[1625608459936,0.24057544,33701.0,33700.0,0.24057544]
[1625608462763,0.32277766,33701.0,33700.0,0.24057544]
[1625608463063,0.24057544,33701.0,33700.0,0.24057544]
[1625608463495,0.24057544,33701.0,33673.0,1.55609808]
[1625608463621,0.057,33700.0,33682.0,0.11037068]
[1625608463844,0.96230176,33683.0,33677.0,0.08648034]
[1625608463966,0.36098,33682.0,33677.0,0.08648034]
[1625608464387,0.36098,33682.0,33672.0,0.08649016]
[1625608464628,0.36098,33682.0,33669.0,0.08649836]
[1625608464808,0.36098,33682.0,33668.0,0.08650095]
[1625608465408,0.36098,33682.0,33669.0,0.08648847]
[1625608465526,0.36098,33682.0,33668.0,0.08649534]
[1625608465890,0.46037544,33672.0,33671.0,0.24057544]
[1625608466009,0.51737544,33672.0,33671.0,0.24057544]
[1625608466129,0.51737544,33672.0,33667.0,0.32707145]
[1625608466371,0.46037544,33672.0,33667.0,0.32707145]
[1625608466489,0.51737544,33672.0,33667.0,0.32707145]
[1625608466611,0.51737544,33672.0,33667.0,0.24057544]
[1625608467452,0.51737544,33672.0,33666.0,0.08649992]
[1625608467692,0.46037544,33672.0,33666.0,0.08649992]
[1625608467812,0.46037544,33672.0,33665.0,0.08650602]
[1625608467932,0.24057544,33672.0,33670.0,0.24057544]
[1625608469496,0.24057544,33672.0,33671.0,0.08649299]
[1625608469736,0.24057544,33672.0,33670.0,1.45146855]
[1625608469857,0.24057544,33672.0,33671.0,0.24057544]
[1625608470938,0.24057544,33672.0,33671.0,1.4514273]
[1625608471238,0.24057544,33672.0,33671.0,0.08648592]
[1625608471419,0.24057544,33672.0,33669.0,0.0864999]
[1625608471718,0.24057544,33672.0,33668.0,0.08650024]
[1625608471962,0.24057544,33669.0,33668.0,0.08650024]
[1625608472138,0.24057544,33669.0,33666.0,1.21102152]
[1625608472139,0.24057544,33669.0,33666.0,0.08650893]
[1625608472263,0.56493544,33669.0,33666.0,0.08650893]
[1625608472624,0.56493544,33669.0,33665.0,0.08650932]
[1625608472864,0.56493544,33669.0,33666.0,0.08650843]
[1625608473946,0.56493544,33669.0,33668.0,0.24057544]
[1625608474608,0.62193544,33669.0,33668.0,0.24057544]
[1625608474968,0.56493544,33669.0,33668.0,0.24057544]
[1625608475148,0.24057544,33669.0,33668.0,0.24057544]
[1625608477856,5.088e-05,33672.0,33668.0,0.56375544]
[1625608477977,0.32243191,33685.0,33668.0,0.80433088]
[1625608478098,0.24057544,33685.0,33668.0,0.89086497]
[1625608478277,0.24057544,33685.0,33669.0,0.08653233]
[1625608478519,0.24057544,33685.0,33671.0,0.08652913]
[1625608478643,0.24057544,33685.0,33671.0,0.58652913]
[1625608478759,0.057,33684.0,33674.0,0.08652239]
[1625608478998,0.057,33684.0,33672.0,1.21131347]
[1625608478999,0.057,33684.0,33675.0,4.26404842]
[1625608479179,0.057,33684.0,33675.0,4.55899842]
[1625608479902,0.057,33684.0,33683.0,0.24057544]
[1625608480022,0.057,33684.0,33683.0,0.72112088]
[1625608483986,0.057,33689.0,33683.0,0.96169632]
[1625608484345,0.24057544,33690.0,33683.0,0.96169632]
[1625608484587,0.057,33692.0,33683.0,0.96169632]
[1625608485970,0.057,33692.0,33691.0,0.48115088]
[1625608486095,0.057,33692.0,33691.0,0.80772088]
[1625608487597,0.057,33692.0,33691.0,0.32657]
[1625608487719,0.057,33692.0,33683.0,0.72112088]
[1625608488016,0.057,33692.0,33690.0,0.24057544]
[1625608488136,0.057,33692.0,33683.0,0.48115088]
[1625608488258,0.08220246,33691.0,33683.0,0.48115088]
[1625608488499,0.08218215,33690.0,33683.0,0.48115088]
[1625608488859,0.13918215,33690.0,33683.0,0.48115088]
[1625608488980,0.08215446,33689.0,33683.0,0.48115088]
[1625608489279,0.13914697,33690.0,33683.0,0.48115088]
[1625608489824,0.22844697,33690.0,33683.0,0.48115088]
[1625608489940,0.1463,33690.0,33683.0,0.48115088]
[1625608490062,0.24057544,33684.0,33683.0,0.48115088]
[1625608490182,0.29757544,33684.0,33683.0,0.48115088]
[1625608490844,0.24057544,33684.0,33683.0,0.48115088]
[1625608491084,0.08217004,33690.0,33683.0,0.80275088]
[1625608491207,0.057,33691.0,33683.0,0.80275088]
[1625608491507,0.13919308,33691.0,33683.0,0.80275088]
[1625608491630,0.01600697,33690.0,33683.0,0.80275088]
[1625608492105,0.01600697,33690.0,33689.0,0.24057544]
[1625608494746,0.01600588,33692.0,33689.0,0.24057544]
[1625608495110,0.01600489,33694.0,33691.0,4.8047]
[1625608495230,0.01600489,33694.0,33691.0,5.14564]
[1625608495349,0.082396,33700.0,33691.0,5.14564]
[1625608495662,0.65801675,33702.0,33691.0,5.14564]
[1625608495663,0.08243029,33702.0,33691.0,5.14564]
[1625608495781,0.24057544,33703.0,33691.0,5.14564]
[1625608495893,0.0824861,33704.0,33692.0,0.0036845]
[1625608496015,0.08252081,33705.0,33692.0,0.0036845]
[1625608496205,0.08252081,33705.0,33703.0,1.24710176]
[1625608496313,0.49430129,33706.0,33703.0,1.24710176]
[1625608496314,0.08254734,33706.0,33703.0,1.24710176]
[1625608496432,0.01600135,33704.0,33703.0,1.24710176]
[1625608496617,0.08257906,33708.0,33703.0,1.24710176]
[1625608496855,0.08260847,33709.0,33703.0,1.24710176]
[1625608496976,0.01600153,33707.0,33703.0,1.24710176]
[1625608497277,0.01600121,33708.0,33703.0,1.24710176]
[1625608497577,1.39523397,33712.0,33703.0,1.24710176]
[1625608497578,0.32322795,33712.0,33703.0,1.24710176]
[1625608497819,0.08263925,33711.0,33703.0,1.24710176]
[1625608498055,0.24057544,33712.0,33703.0,1.24710176]
[1625608498056,0.3232199,33712.0,33703.0,1.24710176]
[1625608498236,0.08264446,33712.0,33710.0,0.79554088]
[1625608498836,0.08254735,33713.0,33710.0,0.79554088]
[1625608499316,0.08253334,33714.0,33710.0,0.79554088]
[1625608500157,0.29757544,33715.0,33711.0,0.24057544]
[1625608500402,0.22516344,33715.0,33711.0,0.24057544]
[1625608500519,0.08252508,33714.0,33711.0,0.24057544]
[1625608502624,1.15163767,33713.0,33711.0,0.24057544]
[1625608502741,0.057,33712.0,33711.0,0.24057544]
[1625608502862,1.44447705,33712.0,33711.0,0.24057544]
[1625608503285,2.72341645,33712.0,33703.0,0.24057544]
[1625608503584,0.08232667,33708.0,33703.0,0.24057544]
[1625608504005,0.08229986,33707.0,33703.0,0.24057544]
[1625608504126,0.24057544,33705.0,33704.0,0.24057544]
[1625608504245,0.62661544,33705.0,33704.0,0.24057544]
[1625608506170,0.32904,33705.0,33704.0,0.24057544]
[1625608506291,0.41119942,33709.0,33704.0,0.24057544]
[1625608506409,0.41119942,33709.0,33704.0,0.47757544]
[1625608506531,0.08236289,33710.0,33704.0,0.47757544]
[1625608507491,0.08234362,33709.0,33704.0,0.47757544]
[1625608508212,0.08233062,33710.0,33708.0,0.24057544]
[1625608509415,0.46820326,33711.0,33708.0,0.24057544]
[1625608509714,0.13937378,33711.0,33708.0,0.24057544]
[1625608509959,0.08237747,33710.0,33708.0,0.24057544]
[1625608510199,0.24057544,33709.0,33708.0,0.24057544]
[1625608510322,0.29757544,33709.0,33708.0,0.24057544]
[1625608511404,0.057,33709.0,33708.0,0.24057544]
[1625608513385,0.38662995,33709.0,33708.0,0.24057544]
[1625608513744,0.32962995,33709.0,33708.0,0.24057544]
[1625608513925,0.08262308,33709.0,33708.0,0.24057544]
[1625608514404,0.65321741,33710.0,33708.0,0.24057544]
[1625608514645,0.08264711,33709.0,33708.0,0.24057544]
[1625608515369,0.49544686,33709.0,33708.0,0.24057544]
[1625608515668,1.21290978,33709.0,33708.0,0.24057544]
[1625608515788,1.53879978,33709.0,33708.0,0.24057544]
[1625608516271,1.48179978,33709.0,33708.0,0.24057544]
[1625608516632,2.47211634,33709.0,33708.0,0.24057544]
[1625608516871,1.48179978,33709.0,33708.0,0.24057544]
[1625608517353,0.65646318,33709.0,33708.0,0.24057544]
[1625608517471,0.33057318,33709.0,33708.0,0.24057544]
[1625608517651,0.41335365,33709.0,33708.0,0.24057544]
[1625608518012,0.33057318,33709.0,33708.0,0.24057544]
[1625608518676,0.82593346,33709.0,33708.0,0.24057544]
[1625608518977,0.33057318,33709.0,33708.0,0.24057544]
[1625608519216,0.41324055,33709.0,33708.0,0.24057544]
[1625608519397,0.41290807,33710.0,33708.0,0.24057544]
[1625608519577,0.41290807,33710.0,33708.0,0.53897544]
[1625608519696,0.08268063,33710.0,33708.0,0.53897544]
[1625608520237,0.08268063,33710.0,33708.0,0.77955088]
[1625608520358,0.41296217,33711.0,33708.0,0.77955088]
[1625608520899,0.08268998,33711.0,33708.0,0.77955088]
[1625608521618,0.41286545,33712.0,33708.0,0.77955088]
[1625608521858,0.08264887,33711.0,33708.0,0.77955088]
[1625608522038,0.41286172,33712.0,33708.0,0.77955088]
[1625608522279,0.33021072,33712.0,33711.0,0.24057544]
[1625608522520,0.08265735,33712.0,33711.0,0.24057544]
[1625608522763,0.08254483,33713.0,33711.0,0.24057544]
[1625608523422,0.015996,33712.0,33711.0,0.24057544]
[1625608523783,0.01599578,33713.0,33711.0,0.24057544]
[1625608524323,0.01599578,33713.0,33712.0,0.24057544]
[1625608529132,0.01599702,33714.0,33712.0,0.24057544]
[1625608531596,0.09831028,33714.0,33712.0,0.24057544]
[1625608531954,0.01598948,33713.0,33712.0,0.24057544]
[1625608532256,0.34442627,33713.0,33712.0,0.24057544]
[1625608532435,0.40142627,33713.0,33712.0,0.24057544]
[1625608532796,0.89407066,33713.0,33712.0,0.24057544]
[1625608532976,0.56563387,33713.0,33712.0,0.24057544]
[1625608533458,1.22261592,33713.0,33712.0,0.24057544]
[1625608533762,1.53439592,33713.0,33712.0,0.24057544]
[1625608534000,2.51910425,33713.0,33712.0,0.24057544]